bitfinex/quotes_SOLUSD_20251116
["timestamp","ask_amount","ask_price","bid_price","bid_amount"]
[1763290793154,0.67,143.07,143.04,0.69]
[1763290793442,7.6591832,143.08,143.05,0.69]
[1763290793649,0.67,143.07,143.05,0.69]
[1763290794147,7.65963249,143.07,143.03,7.68154023]
[1763290794443,7.65963249,143.07,143.04,0.69]
[1763290797645,6.989097,143.08,143.04,0.69]
[1763290797822,6.989097,143.08,143.04,7.68092302]
[1763290798023,7.659097,143.08,143.04,7.68092302]
[1763290798223,7.659097,143.08,143.05,0.69]
[1763290799050,0.67,143.08,143.05,0.69]
[1763290800354,0.67,143.08,143.05,7.68036109]
[1763290800557,111.18830463,143.1,143.06,0.69]
[1763290800731,104.87,143.1,143.06,0.69]
[1763290801052,104.2,143.1,143.06,0.69]
[1763290801230,0.67,143.09,143.06,0.69]
[1763290801430,7.65781102,143.11,143.06,0.69]
[1763290801660,12.35698369,143.11,143.06,0.69]
[1763290801861,4.69917267,143.11,143.07,6.98958551]
[1763290802158,5.36917267,143.11,143.07,6.98958551]
[1763290802337,5.36917267,143.11,143.08,0.69]
[1763290802725,0.67,143.12,143.08,0.69]
[1763290802929,15.91683314,143.13,143.08,8.95]
[1763290803351,15.91683314,143.13,143.09,0.69]
[1763290803656,8.93,143.13,143.09,0.69]
[1763290803859,15.91673676,143.13,143.09,7.67854804]
[1763290804070,15.91673676,143.13,143.09,0.69]
[1763290804229,0.67,143.12,143.1,0.69]
[1763290804849,15.24673676,143.13,143.1,0.69]
[1763290805029,0.67,143.12,143.1,0.69]
[1763290806549,7.65723226,143.12,143.1,0.69]
[1763290807953,15.24678133,143.13,143.1,0.69]
[1763290808149,15.91626165,143.14,143.1,0.69]
[1763290808347,15.22578504,143.15,143.1,7.67795959]
[1763290808657,15.22568144,143.15,143.1,15.91795959]
[1763290808858,15.22568144,143.15,143.11,0.69]
[1763290809336,6.98568144,143.15,143.11,0.69]
[1763290810340,7.65568144,143.15,143.11,7.67740963]
[1763290810768,12.3462827,143.16,143.11,7.67740963]
[1763290810952,11.6762827,143.16,143.12,0.69]
[1763290811144,7.65528987,143.16,143.12,0.69]
[1763290812375,0.67,143.19,143.13,15.22665548]
[1763290812583,12.34417497,143.19,143.13,32.6932942]
[1763290812866,0.67,143.19,143.14,0.69]
[1763290813041,0.67,143.18,143.14,0.69]
[1763290814141,6.98470349,143.17,143.14,0.69]
[1763290814654,0.7,143.16,143.12,0.72]
[1763290814845,0.7,143.16,143.12,8.24]
[1763290815042,0.7,143.16,143.12,8.96]
[1763290815244,0.7,143.16,143.13,0.72]
[1763290815653,0.7,143.16,143.1,24.18795497]
[1763290815970,0.7,143.16,143.1,8.24]
[1763290816270,0.7,143.16,143.11,0.72]
[1763290816644,6.98567935,143.15,143.11,0.72]
[1763290816845,6.98567935,143.15,143.1,8.96]
[1763290817045,0.68,143.14,143.1,8.24]
[1763290817260,0.68,143.14,143.11,0.72]
[1763290817450,6.98567935,143.15,143.11,0.72]
[1763290817657,7.66567935,143.15,143.11,0.72]
[1763290821556,0.68,143.14,143.09,0.72]
[1763290821764,8.92,143.14,143.08,0.72]
[1763290821975,17.16,143.14,143.08,0.72]
[1763290822166,0.68,143.13,143.08,0.72]
[1763290822693,0.68,143.13,143.06,15.94995752]
[1763290823183,0.68,143.13,143.07,0.72]
[1763290823890,6.98714365,143.12,143.07,0.72]
[1763290824181,19.08266628,143.12,143.07,0.72]
[1763290824379,0.68,143.11,143.07,0.72]
[1763290824988,8.92,143.11,143.05,0.72]
[1763290825183,29.91737532,143.11,143.06,0.72]
[1763290825371,0.68,143.1,143.06,0.72]
[1763290826065,6.98860856,143.09,143.06,0.72]
[1763290826690,7.66860856,143.09,143.06,0.72]
[1763290827468,7.66812019,143.1,143.06,0.72]
[1763290828868,7.6689147,143.09,143.06,0.72]
[1763290832985,6.9889147,143.09,143.06,0.72]
[1763290833292,6.98831649,143.1,143.06,0.72]
[1763290833493,7.66831649,143.1,143.06,0.72]
[1763290834296,7.66831649,143.1,143.06,7.71006785]
[1763290835283,15.90809116,143.11,143.07,0.72]
[1763290836191,0.68,143.1,143.07,0.72]
[1763290836584,15.90809116,143.11,143.07,7.70944337]
[1763290836887,15.22809116,143.11,143.07,7.70944337]
[1763290837092,0.68,143.1,143.07,7.70944337]
[1763290837395,0.68,143.1,143.08,0.72]
[1763290837564,0.68,143.1,143.07,6.98944337]
[1763290837770,0.68,143.1,143.07,0.72]
[1763290839798,7.66826836,143.1,143.07,0.72]
[1763290840297,0.68,143.09,143.04,7.71093033]
[1763290840485,8.92,143.09,143.04,7.71093033]
[1763290840893,0.68,143.08,143.05,0.72]
[1763290842397,7.66919265,143.08,143.05,0.72]
[1763290845906,0.69,143.07,143.03,8.96]
[1763290846205,8.93,143.07,143.02,0.72]
[1763290846502,8.93,143.07,143.01,0.72]
[1763290846668,21.690315,143.06,143.01,0.72]
[1763290846997,8.24,143.05,143.01,0.72]
[1763290847169,8.93,143.05,143.01,0.72]
[1763290847789,15.92100631,143.05,143.01,0.72]
[1763290852499,8.93,143.05,143.01,0.72]
[1763290852698,21.000315,143.06,143.01,0.72]
[1763290852904,0.69,143.11,143.02,8.26]
[1763290853080,8.26,143.1,143.02,29.25590579]
[1763290853283,8.95,143.1,143.03,0.72]
[1763290853687,0.69,143.09,143.03,0.72]
[1763290856402,8.95,143.1,143.03,0.72]
[1763290856604,8.95,143.1,143.03,21.71590579]
[1763290857102,8.95,143.1,143.04,0.72]
[1763290861416,8.26,143.1,143.04,0.72]
[1763290861711,21.04552263,143.12,143.04,0.72]
[1763290862086,0.69,143.11,143.04,0.72]
[1763290863187,0.69,143.11,143.04,8.98]
[1763290863595,0.69,143.11,143.05,0.72]
[1763290870698,0.69,143.11,143.03,0.72]
[1763290871015,22.6512,143.09,143.03,0.72]
[1763290871192,30.9112,143.09,143.03,0.72]
[1763290871512,0.69,143.08,143.03,0.72]
[1763290873412,30.9112,143.09,143.03,0.72]
[1763290873613,31.5712,143.09,143.03,0.72]
[1763290874216,0.66,143.08,143.03,0.72]
[1763290883425,8.26,143.09,143.03,0.72]
[1763290883633,8.93,143.09,143.03,0.72]
[1763290886533,0.67,143.08,143.03,0.72]
[1763290893641,104.2,143.11,143.04,9.78882769]
[1763290893835,12.09552263,143.12,143.05,8.95]
[1763290894038,0.67,143.1,143.05,8.95]
[1763290894239,0.67,143.1,143.06,0.69]
[1763290894821,12.09552263,143.12,143.06,0.69]
[1763290895021,12.76552263,143.12,143.06,0.69]
[1763290896446,12.09552263,143.12,143.08,22.6512]
[1763290896633,12.09552263,143.12,143.08,30.9112]
[1763290896823,12.09552263,143.12,143.09,0.69]
[1763290897653,12.09552263,143.12,143.1,9.78882769]
[1763290897829,12.09552263,143.12,143.11,8.26]
[1763290898157,12.09552263,143.12,143.11,8.95]
[1763290898336,0.67,143.17,143.11,8.95]
[1763290898538,0.67,143.17,143.12,0.69]
[1763290901837,8.93,143.17,143.12,0.69]
[1763290902026,0.67,143.16,143.12,0.69]
[1763290903933,0.66,143.17,143.12,0.69]
[1763290906753,0.66,143.17,143.1,22.6512]
[1763290906945,0.66,143.17,143.11,0.72]
[1763290909741,20.4217346,143.18,143.11,0.72]
[1763290909943,12.1817346,143.18,143.11,0.72]
[1763290910658,12.8417346,143.18,143.11,0.72]
[1763290912574,0.66,143.17,143.11,0.72]
[1763290912754,0.66,143.17,143.11,8.96]
[1763290913266,0.66,143.17,143.12,0.72]
[1763290914983,0.66,143.17,143.11,8.96]
[1763290915558,0.66,143.17,143.12,0.72]
[1763290920470,22.6512,143.15,143.07,73.9817346]
[1763290920670,22.6512,143.13,143.02,9.78882769]
[1763290920967,8.24,143.12,143.06,0.72]
[1763290921170,8.9,143.12,143.06,0.72]
[1763290921869,29.25149844,143.16,143.07,22.6512]
[1763290922046,0.66,143.15,143.08,8.26]
[1763290922248,0.66,143.15,143.08,23.3712]
[1763290922557,0.66,143.15,143.09,0.72]
[1763290935283,0.66,143.15,143.08,30.9112]
[1763290935483,0.66,143.15,143.08,0.7]
[1763290935781,44.30416735,143.15,143.07,0.7]
[1763290936282,0.66,143.14,143.07,0.7]
[1763290936466,8.26,143.13,143.07,0.7]
[1763290936864,0.66,143.12,143.07,0.7]
[1763290938188,8.26,143.13,143.07,0.7]
[1763290938386,0.7,143.16,143.09,22.6512]
[1763290938904,0.7,143.16,143.1,0.66]
[1763290940894,0.7,143.16,143.1,23.3112]
[1763290941426,0.7,143.16,143.11,0.66]
[1763290943109,8.26,143.17,143.11,0.66]
[1763290943309,8.96,143.17,143.11,0.66]
[1763290951692,8.26,143.17,143.11,0.66]
[1763290951888,12.1817346,143.18,143.11,0.66]
[1763290951889,12.1817346,143.18,143.12,9.78882769]
[1763290952404,12.1817346,143.18,143.13,0.66]
[1763290953206,12.8817346,143.18,143.13,0.66]
[1763290956402,12.8817346,143.18,143.13,8.92]
[1763290956908,12.1817346,143.18,143.14,0.66]
[1763290957109,0.7,143.17,143.14,0.66]
[1763290958016,0.7,143.17,143.13,8.26]
[1763290958202,0.7,143.17,143.14,0.66]
[1763290960119,12.1817346,143.18,143.14,0.66]
[1763290965326,12.1817346,143.18,143.16,22.6512]
[1763290965833,12.1817346,143.18,143.17,0.66]
[1763290966023,0.2,143.2,143.17,0.66]
[1763290967800,0.2,143.2,143.18,9.78882769]
[1763290968000,0.2,143.2,143.19,18.04882769]
[1763290968219,0.2,143.2,143.19,18.70882769]
[1763290968815,0.2,143.2,143.19,0.66]
[1763290969126,0.2,143.2,143.19,23.3112]
[1763290969306,0.86,143.2,143.17,11.71671386]
[1763290969500,0.86,143.2,143.17,8.92]
[1763290970000,0.86,143.2,143.17,0.66]
[1763290971224,0.2,143.2,143.17,0.66]
[1763290971524,0.66,143.19,143.16,8.26]
[1763290971725,0.66,143.19,143.15,21.98172678]
[1763290972100,0.2,143.2,143.16,0.66]
[1763290972610,0.86,143.2,143.16,0.66]
[1763290972804,0.2,143.2,143.16,23.3112]
[1763290973213,0.2,143.2,143.17,0.66]
[1763290973430,0.2,143.2,143.17,8.92]
[1763290974402,0.2,143.2,143.18,0.66]
[1763290976622,0.66,143.19,143.15,21.13790569]
[1763290976926,0.2,143.2,143.16,0.66]
[1763290977227,0.86,143.2,143.16,0.66]
[1763290978402,0.66,143.19,143.13,0.66]
[1763290978610,0.66,143.19,143.13,8.92]
[1763290981219,0.66,143.19,143.14,0.66]
[1763290985414,0.2,143.2,143.14,0.66]
[1763290986032,0.86,143.2,143.14,0.66]
[1763290986448,0.66,143.19,143.14,0.66]
[1763290999828,0.2,143.2,143.16,22.6512]
[1763291000037,0.67,143.19,143.16,8.26]
[1763291000240,0.67,143.19,143.16,8.98]
[1763291000443,0.67,143.19,143.14,8.98]
[1763291000934,0.67,143.19,143.15,0.72]
[1763291009441,0.2,143.2,143.15,0.72]
[1763291010943,0.87,143.2,143.15,0.72]
[1763291012157,0.67,143.19,143.15,0.72]
[1763291013453,0.2,143.2,143.15,0.72]
[1763291013656,0.67,143.19,143.15,0.72]
[1763291020752,0.67,143.19,143.14,8.26]
[1763291020953,23.3212,143.19,143.14,8.26]
[1763291021151,23.3212,143.19,143.12,29.61439973]
[1763291021347,0.67,143.18,143.12,29.61439973]
[1763291021550,0.67,143.18,143.13,0.72]
[1763291029064,0.67,143.18,143.11,22.6512]
[1763291029245,0.67,143.18,143.11,8.98]
[1763291029646,23.3212,143.18,143.11,8.98]
[1763291030072,23.3212,143.18,143.11,29.58229759]
[1763291030275,0.69,143.17,143.11,29.58229759]
[1763291030459,0.69,143.17,143.12,0.72]
[1763291031075,0.69,143.17,143.11,28.86229759]
[1763291031259,0.69,143.17,143.11,29.58229759]
[1763291031989,0.69,143.17,143.12,0.72]
[1763291032875,22.6512,143.18,143.12,0.72]
[1763291033177,0.69,143.17,143.12,0.72]
[1763291036277,0.69,143.17,143.11,28.86229759]
[1763291036489,0.69,143.17,143.12,0.72]
[1763291037363,8.95,143.17,143.12,0.72]
[1763291037881,0.69,143.16,143.12,0.72]
[1763291041485,0.69,143.16,143.1,22.07223982]
[1763291041667,0.69,143.16,143.1,0.72]
[1763291041860,0.69,143.16,143.08,31.6312]
[1763291042090,0.69,143.16,143.09,0.72]
[1763291042292,0.69,143.16,143.09,21.49921097]
[1763291042780,0.69,143.16,143.1,0.72]
[1763291045971,23.3412,143.18,143.11,8.26]
[1763291046385,23.3412,143.18,143.12,0.72]
[1763291047088,0.69,143.18,143.12,0.72]
[1763291053974,0.69,143.18,143.11,0.7]
[1763291054898,0.69,143.18,143.1,8.26]
[1763291055191,0.69,143.18,143.1,8.98]
[1763291055403,32.44002769,143.17,143.09,21.37949622]
[1763291055576,8.26,143.16,143.07,8.26]
[1763291055776,0.67,143.15,143.09,0.72]
[1763291062493,22.6512,143.14,143.09,0.72]
[1763291063007,0.67,143.13,143.09,0.72]
[1763291063782,8.93,143.13,143.09,0.72]
[1763291064277,0.67,143.12,143.09,0.72]
[1763291065178,0.67,143.12,143.07,0.72]
[1763291067413,0.67,143.12,143.06,0.72]
[1763291080119,112.46,143.13,143.06,0.72]
[1763291080410,113.13,143.13,143.06,0.72]
[1763291082121,0.67,143.12,143.06,0.72]
[1763291086013,112.46,143.13,143.06,0.72]
[1763291086247,112.46,143.13,143.06,7.79771543]
[1763291086530,104.2,143.13,143.06,7.79771543]
[1763291086730,104.2,143.13,143.07,0.72]
[1763291086905,104.92,143.13,143.08,8.26]
[1763291087405,104.92,143.13,143.09,0.72]
[1763291087706,42.61618101,143.15,143.09,0.72]
[1763291087906,0.72,143.12,143.09,0.72]
[1763291090438,0.72,143.12,143.07,0.72]
[1763291090645,8.98,143.12,143.06,8.98]
[1763291091009,0.72,143.11,143.07,0.72]
[1763291091634,0.72,143.11,143.05,0.72]
[1763291093831,0.72,143.11,143.04,0.72]
[1763291094041,0.72,143.11,143.05,0.72]
[1763291094244,31.6312,143.12,143.05,0.72]
[1763291094737,30.9112,143.12,143.05,0.72]
[1763291095239,0.72,143.11,143.05,0.72]
[1763291102746,30.9112,143.12,143.05,0.72]
[1763291103752,30.9112,143.12,143.05,7.79771543]
[1763291103929,30.9112,143.12,143.06,0.72]
[1763291104141,0.72,143.11,143.07,8.26]
[1763291104647,0.72,143.11,143.08,0.72]
[1763291104841,0.72,143.11,143.05,7.07771543]
[1763291105051,0.72,143.11,143.07,0.72]
[1763291106450,30.9112,143.12,143.07,0.72]
[1763291106653,31.6312,143.12,143.07,0.72]
[1763291106942,0.72,143.11,143.07,0.72]
[1763291108546,0.72,143.11,143.06,8.98]
[1763291109062,0.72,143.11,143.07,0.72]
[1763291111449,23.3712,143.12,143.07,0.72]
[1763291112043,22.6512,143.12,143.07,0.72]
[1763291112641,0.72,143.12,143.07,0.72]
[1763291115141,0.72,143.12,143.06,8.94]
[1763291116058,0.72,143.12,143.06,0.68]
[1763291116257,8.26,143.11,143.05,7.07771543]
[1763291116472,8.26,143.11,143.04,0.68]
[1763291116774,0.69,143.1,143.04,0.68]
[1763291121568,8.26,143.11,143.04,0.68]
[1763291122451,8.26,143.11,143.04,7.75771543]
[1763291122851,8.26,143.11,143.05,0.68]
[1763291123051,8.26,143.11,143.06,8.26]
[1763291123454,8.26,143.11,143.07,0.68]
[1763291123770,104.89,143.12,143.07,0.68]
[1763291124850,30.9112,143.14,143.07,0.68]
[1763291125053,0.69,143.13,143.07,0.68]
[1763291125473,0.69,143.13,143.06,8.26]
[1763291125776,10.47882769,143.13,143.06,0.68]
[1763291126141,0.69,143.12,143.06,0.68]
[1763291126360,8.26,143.11,143.06,0.68]
[1763291126578,8.26,143.11,143.05,8.26]
[1763291126766,0.69,143.1,143.04,7.75771543]
[1763291129166,0.69,143.1,143.05,0.68]
[1763291131454,0.69,143.1,143.04,7.75771543]
[1763291131851,0.69,143.1,143.04,7.07771543]
[1763291132052,0.69,143.1,143.05,0.68]
[1763291143611,0.69,143.1,143.04,7.07771543]
[1763291143612,0.69,143.1,143.04,7.75771543]
[1763291143909,0.69,143.1,143.05,0.68]
[1763291149595,0.69,143.1,143.04,7.07771543]
[1763291149924,32.44002769,143.09,143.0,8.36]
[1763291150224,8.26,143.08,143.02,0.68]
[1763291150425,8.94,143.08,143.02,0.68]
[1763291150595,0.68,143.07,143.02,0.68]
[1763291151215,22.6512,143.06,143.02,0.68]
[1763291151590,0.68,143.05,143.02,0.68]
[1763291156104,8.94,143.05,143.0,9.04]
[1763291156427,8.94,143.05,143.01,0.68]
[1763291156662,0.68,143.04,143.0,0.1]
[1763291157320,0.68,143.04,143.0,0.78]
[1763291157489,0.68,143.04,143.0,0.1]
[1763291160533,22.6512,143.02,143.0,0.1]
[1763291160825,30.9112,143.02,143.0,0.1]
[1763291161125,10.46882769,143.01,142.99,0.1]
[1763291161338,10.46882769,143.0,142.99,0.1]
[1763291162908,15.15760858,143.0,142.99,0.1]
[1763291163420,10.46882769,143.0,142.99,0.1]
[1763291164338,17.14500004,143.0,142.99,0.1]
[1763291164911,15.14500005,143.0,142.99,0.1]
[1763291165125,17.14500004,143.0,142.99,0.1]
[1763291165307,12.46882768,143.0,142.99,0.1]
[1763291166633,20.72882768,143.0,142.99,0.1]
[1763291168542,11.78882768,142.99,142.98,0.1]
[1763291168843,12.46882768,142.99,142.98,0.1]
[1763291173347,114.66882769,142.99,142.98,0.1]
[1763291173520,116.66882768,142.99,142.98,0.1]
[1763291173917,113.58882769,142.95,142.94,0.1]
[1763291174117,32.44002769,142.93,142.92,0.1]
[1763291174425,40.72002769,142.93,142.92,0.1]
[1763291174620,21.5627953,142.93,142.92,0.1]
[1763291176222,44.2139953,142.93,142.92,0.1]
[1763291176425,1.99999999,142.92,142.89,0.1]
[1763291176658,12.47882768,142.92,142.89,0.1]
[1763291176956,18.63433979,142.92,142.89,0.1]
[1763291177160,20.75882768,142.92,142.89,0.1]
[1763291177654,27.27399184,142.92,142.89,0.1]
[1763291179853,16.99399185,142.92,142.89,0.1]
[1763291180159,4.8039676,142.93,142.91,0.68000001]
[1763291180160,2.80396761,142.93,142.91,0.68000001]
[1763291180461,8.28,142.92,142.91,0.68000001]
[1763291181044,30.9312,142.92,142.91,0.68000001]
[1763291182152,8.28,142.92,142.91,0.68000001]
[1763291182361,30.9312,142.92,142.91,0.68000001]
[1763291183259,8.28,142.92,142.91,0.68000001]
[1763291184339,10.9926178,142.95,142.91,0.68000001]
[1763291185742,10.9926178,142.95,142.91,3.48180717]
[1763291185940,10.9926178,142.95,142.92,9.78882769]
[1763291186142,10.9926178,142.95,142.92,10.46882769]
[1763291186453,10.9926178,142.95,142.93,0.68]
[1763291187074,8.28,143.02,142.94,9.78882769]
[1763291187251,8.28,143.03,142.97,22.6512]
[1763291187755,8.28,143.05,142.98,0.68]
[1763291188962,18.06882769,143.05,142.98,0.68]
[1763291189177,8.28,143.05,142.98,0.68]
[1763291190468,9.78882769,143.04,142.98,0.68]
[1763291191768,9.78882769,143.02,142.98,0.68]
[1763291191972,8.28,143.01,142.98,0.68]
[1763291193979,8.28,143.01,142.94,22.6512]
[1763291194204,8.28,143.01,142.98,0.68]
[1763291196472,8.97,143.01,142.98,0.68]
[1763291196861,8.97,143.01,142.96,0.68]
[1763291198754,9.78882769,143.0,142.96,0.68]
[1763291198954,10.47882769,143.0,142.96,0.68]
[1763291199366,9.78882769,143.0,142.96,0.68]
[1763291199566,0.69,142.99,142.94,0.68]
[1763291199784,8.28,142.98,142.94,0.68]
[1763291199981,2.80200343,143.0,142.94,0.68]
[1763291200181,8.28,143.0,142.94,0.68]
[1763291204277,8.28,143.0,142.94,23.3312]
[1763291204686,8.28,143.0,142.95,0.68]
[1763291209092,10.48882769,142.99,142.93,0.68]
[1763291209295,0.7,142.98,142.93,0.68]
[1763291209472,8.28,142.97,142.93,0.68]
[1763291209670,25.1284714,142.97,142.93,0.68]
[1763291212293,25.8284714,142.97,142.93,0.68]
[1763291212883,25.1284714,142.97,142.93,0.68]
[1763291215384,0.7,142.96,142.93,0.68]
[1763291215705,25.8284714,142.97,142.93,0.68]
[1763291215897,25.1284714,142.97,142.93,0.68]
[1763291216499,25.8284714,142.97,142.93,0.68]
[1763291217504,9.78882769,142.96,142.91,1e-08]
[1763291217798,8.28,142.95,142.91,1e-08]
[1763291217996,8.98,142.95,142.91,0.68000001]
[1763291219802,0.7,142.94,142.91,1e-08]
[1763291220002,8.28,142.93,142.91,0.68000001]
[1763291221195,8.28,142.93,142.91,1e-08]
[1763291221893,8.28,142.93,142.91,0.68000001]
[1763291227919,16.8484714,142.97,142.91,0.68000001]
[1763291228287,17.5484714,142.97,142.91,0.68000001]
[1763291228518,0.7,142.96,142.91,0.68000001]
[1763291228819,9.0,142.96,142.91,0.68000001]
[1763291229396,8.3,142.96,142.91,0.68000001]
[1763291229712,0.7,142.95,142.91,0.68000001]
[1763291229901,8.3,142.94,142.91,0.68000001]
[1763291231113,8.3,142.96,142.91,0.68000001]
[1763291232694,0.7,142.95,142.91,0.68000001]
[1763291236604,0.7,142.95,142.91,1e-08]
[1763291236995,113.98882769,142.94,142.91,1e-08]
[1763291237220,9.02,142.93,142.91,1e-08]
[1763291237823,0.72,142.92,142.91,1e-08]
[1763291238132,8.3,142.93,142.91,1e-08]
[1763291238816,9.02,142.93,142.91,1e-08]
[1763291239196,9.02,142.93,142.92,0.7]
[1763291239197,8.3,142.93,142.92,0.7]
[1763291240234,8.3,142.95,142.92,0.7]
[1763291242030,9.02,142.95,142.92,0.7]
[1763291244412,9.02,142.95,142.91,1e-08]
[1763291244613,9.02,142.95,142.91,0.70000001]
[1763291245225,0.72,142.94,142.91,1e-08]
[1763291245429,8.3,142.93,142.91,1e-08]
[1763291245937,9.02,142.93,142.91,1e-08]
[1763291249025,8.3,142.93,142.91,1e-08]
[1763291249240,8.3,142.93,142.91,0.70000001]
[1763291251034,8.3,142.93,142.91,1e-08]
[1763291251035,9.02,142.93,142.91,1e-08]
[1763291251209,8.3,142.93,142.91,1e-08]
[1763291252128,9.02,142.93,142.91,1e-08]
[1763291252337,8.3,142.93,142.91,0.70000001]
[1763291253019,8.3,142.93,142.91,1e-08]
[1763291253217,8.3,142.93,142.91,0.70000001]
[1763291254429,104.2,142.96,142.91,0.70000001]
[1763291254606,8.3,142.95,142.91,0.70000001]
[1763291255634,9.02,142.95,142.91,0.70000001]
[1763291255937,8.3,142.95,142.91,0.70000001]
[1763291263738,8.97,142.95,142.91,0.70000001]
[1763291263935,0.67,142.94,142.91,0.70000001]
[1763291264246,8.3,142.95,142.91,0.70000001]
[1763291264413,13.6842034,142.95,142.91,0.70000001]
[1763291265638,13.0142034,142.95,142.91,0.70000001]
[1763291265945,0.67,142.94,142.91,0.70000001]
[1763291266148,8.3,142.93,142.91,0.70000001]
[1763291268514,112.5,142.96,142.91,0.70000001]
[1763291268721,113.17,142.96,142.91,0.70000001]
[1763291272349,112.5,142.96,142.91,0.70000001]
[1763291272646,8.3,142.96,142.91,0.70000001]
[1763291274220,0.67,142.95,142.91,0.70000001]
[1763291274426,13.67920027,142.96,142.91,0.70000001]
[1763291274847,8.97,142.96,142.91,0.70000001]
[1763291277246,0.67,142.95,142.91,0.70000001]
[1763291277440,8.3,142.94,142.91,0.70000001]
[1763291280834,0.67,142.93,142.91,1e-08]
[1763291281352,8.97,142.94,142.91,1e-08]
[1763291282050,0.67,142.93,142.91,1e-08]
[1763291282850,8.3,142.94,142.91,0.71000001]
[1763291283432,8.28,142.94,142.91,0.71000001]
[1763291286959,0.67,142.93,142.91,1e-08]
[1763291287257,8.28,142.92,142.91,1e-08]
[1763291289561,8.95,142.92,142.91,1e-08]
[1763291293062,11.75337807,142.92,142.91,1e-08]
[1763291295546,21.54220576,142.92,142.91,1e-08]
[1763291296264,2.80337807,142.92,142.91,1e-08]
[1763291296434,8.28,142.92,142.91,1e-08]
[1763291296635,8.28,142.92,142.91,0.67000001]
[1763291299873,8.28,142.92,142.91,1e-08]
[1763291300262,8.28,142.92,142.91,0.67000001]
[1763291300571,8.28,142.92,142.91,1e-08]
[1763291300946,8.98,142.92,142.91,1e-08]
[1763291301754,11.78357455,142.92,142.91,1e-08]
[1763291301959,21.57240224,142.92,142.91,1e-08]
[1763291303485,125.77240224,142.92,142.91,1e-08]
[1763291304768,117.49240224,142.92,142.91,1e-08]
[1763291304961,125.77240224,142.92,142.91,1e-08]
[1763291305881,115.28357455,142.92,142.91,1e-08]
[1763291306081,112.48,142.92,142.91,1e-08]
[1763291306260,113.18,142.92,142.91,1e-08]
[1763291308789,125.77240224,142.92,142.91,1e-08]
[1763291308980,130.47498024,142.92,142.91,1e-08]
[1763291309161,125.77240224,142.92,142.91,1e-08]
[1763291311477,125.07240224,142.92,142.91,1e-08]
[1763291311677,115.28357455,142.92,142.91,1e-08]
[1763291311890,112.48,142.92,142.91,1e-08]
[1763291312469,8.28,142.92,142.91,1e-08]
[1763291314313,8.28,142.92,142.91,0.67000001]
[1763291315889,8.28,142.92,142.91,1e-08]
[1763291316070,8.98,142.92,142.91,1e-08]
[1763291316983,8.28,142.92,142.91,1e-08]
[1763291321974,8.98,142.92,142.91,1e-08]